bitfinex/quotes_SOLUSD_20250612
["timestamp","ask_amount","ask_price","bid_price","bid_amount"]
[1749697825964,13.69851364,160.46,160.45,44.61181043]
[1749697826136,13.69851364,160.46,160.45,44.46964886]
[1749697826755,7.86465738,160.52,160.46,18.64964886]
[1749697827052,13.69851364,160.47,160.46,18.64964886]
[1749697827735,13.69851364,160.47,160.43,31.52]
[1749697827933,13.69851364,160.44,160.43,24.34964886]
[1749697828743,13.69851364,160.44,160.43,34.34964886]
[1749697833453,13.69851364,160.48,160.43,34.34964886]
[1749697833757,13.69851364,160.44,160.43,34.34964886]
[1749697834669,13.69851364,160.44,160.43,5.7]
[1749697836956,39.69851364,160.44,160.43,5.7]
[1749697837662,59.62991261,160.44,160.37,18.64964886]
[1749697837969,13.69851364,160.38,160.37,18.64964886]
[1749697838355,13.69851364,160.38,160.36,5.68]
[1749697838547,13.69851364,160.37,160.36,5.68]
[1749697840877,13.69851364,160.37,160.3,43.06]
[1749697841171,13.69851364,160.37,160.29,5.68]
[1749697841172,26.0,160.36,160.31,18.64964886]
[1749697841761,26.0,160.35,160.3,18.64964886]
[1749697842254,13.69851364,160.31,160.3,18.64964886]
[1749697844174,26.0,160.35,160.3,18.64964886]
[1749697844381,13.69851364,160.34,160.3,18.64964886]
[1749697844554,13.69851364,160.33,160.3,18.64964886]
[1749697844955,1.5755,160.39,160.3,28.64964886]
[1749697844956,26.0,160.37,160.3,28.64964886]
[1749697845153,1.5755,160.39,160.33,18.64964886]
[1749697845154,13.69851364,160.36,160.33,18.64964886]
[1749697847281,1.5755,160.39,160.33,18.64964886]
[1749697847486,8.0085,160.45,160.35,13.69851364]
[1749697847787,8.0085,160.45,160.37,0.28432314]
[1749697847788,1.6238,160.45,160.37,0.28432314]
[1749697847969,13.69851364,160.44,160.39,32.49032407]
[1749697848172,1.6238,160.45,160.39,58.49032407]
[1749697848173,13.69851364,160.43,160.39,58.49032407]
[1749697848480,13.69851364,160.43,160.39,44.79181043]
[1749697849562,13.69851364,160.42,160.39,44.79181043]
[1749697850866,13.69851364,160.44,160.39,58.49032407]
[1749697853358,13.69851364,160.43,160.39,58.49032407]
[1749697853677,13.69851364,160.43,160.39,44.79181043]
[1749697853880,13.69851364,160.42,160.41,26.0]
[1749697854479,13.69851364,160.43,160.42,18.64964886]
[1749697857165,13.69851364,160.46,160.42,44.46964886]
[1749697857463,13.69851364,160.45,160.42,44.46964886]
[1749697859882,13.69851364,160.46,160.42,58.1681625]
[1749697860077,13.69851364,160.46,160.43,0.14216157]
[1749697860385,13.69851364,160.47,160.43,0.42648471]
[1749697860588,13.69851364,160.47,160.45,18.64964886]
[1749697860788,13.69851364,160.49,160.45,18.64964886]
[1749697860987,13.69851364,160.49,160.47,18.64964886]
[1749697861286,13.69851364,160.49,160.47,24.32964886]
[1749697861672,13.69851364,160.48,160.47,5.68]
[1749697862798,14.44475937,160.53,160.47,5.68]
[1749697862967,13.69851364,160.48,160.47,5.68]
[1749697871102,27.39702728,160.48,160.47,5.68]
[1749697871484,13.69851364,160.48,160.47,5.68]
[1749697872002,8.2153,160.53,160.47,5.68]
[1749697872003,1.6009,160.53,160.48,18.64964886]
[1749697872198,13.69851364,160.49,160.48,18.64964886]
[1749697872701,13.69851364,160.49,160.47,5.68]
[1749697872904,13.69851364,160.48,160.47,24.32964886]
[1749697874798,7.8303263,160.53,160.47,24.32964886]
[1749697874976,13.69851364,160.48,160.47,24.32964886]
[1749697876315,27.6009,160.53,160.47,24.32964886]
[1749697876491,13.69851364,160.5,160.48,18.64964886]
[1749697876911,13.69851364,160.49,160.48,18.64964886]
[1749697879722,13.69851364,160.5,160.48,18.64964886]
[1749697882132,1.6009,160.53,160.48,18.64964886]
[1749697882333,13.69851364,160.5,160.48,18.64964886]
[1749697882626,1.6009,160.53,160.48,18.64964886]
[1749697882835,13.69851364,160.5,160.48,18.64964886]
[1749697886931,1.6009,160.53,160.48,18.64964886]
[1749697887115,13.69851364,160.5,160.48,18.64964886]
[1749697893626,13.69851364,160.53,160.5,18.64964886]
[1749697894103,26.0,160.58,160.5,18.64964886]
[1749697894104,13.69851364,160.51,160.5,18.64964886]
[1749697896209,13.69851364,160.51,160.47,31.48]
[1749697896417,1.5935,160.53,160.48,18.64964886]
[1749697896739,1.5935,160.53,160.47,5.68]
[1749697896740,13.69851364,160.49,160.47,5.68]
[1749697896925,7.8228777,160.53,160.45,18.64964886]
[1749697896926,27.39702728,160.48,160.45,18.64964886]
[1749697897101,13.69851364,160.46,160.45,18.64964886]
[1749697899129,1.5935,160.47,160.44,5.66]
[1749697899322,13.69851364,160.45,160.44,5.66]
[1749697899728,1.5935,160.47,160.44,5.66]
[1749697899927,13.69851364,160.45,160.44,24.30964886]
[1749697901236,13.69851364,160.45,160.44,5.66]
[1749697903109,1.5935,160.47,160.44,5.66]
[1749697903417,13.69851364,160.45,160.44,5.66]
[1749697905941,1.5935,160.47,160.44,5.66]
[1749697906248,13.69851364,160.45,160.44,15.66]
[1749697906607,6.2189,160.5,160.44,15.66]
[1749697906938,27.5587,160.51,160.44,15.66]
[1749697907134,1.5587,160.51,160.44,15.66]
[1749697907319,13.69851364,160.47,160.44,60.10964886]
[1749697910447,1.5587,160.51,160.44,60.10964886]
[1749697910622,13.69851364,160.47,160.44,60.10964886]
[1749697911229,1.5587,160.51,160.44,60.10964886]
[1749697911433,13.69851364,160.47,160.44,60.10964886]
[1749697912949,1.5587,160.51,160.44,15.66]
[1749697912950,13.69851364,160.45,160.44,15.66]
[1749697913142,13.69851364,160.45,160.44,41.44]
[1749697913330,13.69851364,160.46,160.45,18.64964886]
[1749697916431,13.69851364,160.46,160.44,15.66]
[1749697916637,13.69851364,160.45,160.44,34.30964886]
[1749697934263,13.69851364,160.45,160.44,15.66]
[1749697936265,13.69851364,160.45,160.44,5.66]
[1749697937164,13.69851364,160.45,160.44,24.30964886]
[1749697937367,39.69851364,160.48,160.44,5.66]
[1749697937665,39.69851364,160.48,160.45,18.64964886]
[1749697937895,13.69851364,160.46,160.45,18.64964886]
[1749697938170,13.69851364,160.46,160.44,5.66]
[1749697938467,26.0,160.48,160.44,5.66]
[1749697938650,13.69851364,160.45,160.44,5.66]
[1749697940044,13.69851364,160.46,160.44,5.66]
[1749697940245,13.69851364,160.47,160.44,5.66]
[1749697940470,26.0,160.48,160.44,5.66]
[1749697940471,13.69851364,160.46,160.44,5.66]
[1749697941180,13.69851364,160.45,160.44,5.66]
[1749697951553,4.65944736,160.49,160.44,5.66]
[1749697951766,13.69851364,160.47,160.44,5.66]
[1749697951971,13.69851364,160.47,160.45,18.64964886]
[1749697952164,1.5217,160.5,160.45,18.64964886]
[1749697952367,13.69851364,160.48,160.45,18.64964886]
[1749697952689,13.69851364,160.47,160.45,18.64964886]
[1749697953172,13.69851364,160.46,160.45,18.64964886]
[1749697953558,13.69851364,160.46,160.41,26.0]
[1749697953755,13.69851364,160.42,160.41,18.64964886]
[1749697955779,13.69851364,160.42,160.4,5.66]
[1749697956097,13.69851364,160.41,160.4,24.30964886]
[1749697957082,13.69851364,160.48,160.41,18.64964886]
[1749697957083,13.69851364,160.42,160.41,18.64964886]
[1749697957304,13.69851364,160.48,160.41,18.64964886]
[1749697957305,13.69851364,160.43,160.41,18.64964886]
[1749697957664,13.69851364,160.42,160.41,18.64964886]
[1749697959368,13.69851364,160.42,160.4,5.66]
[1749697959690,13.69851364,160.41,160.4,24.30964886]
[1749697961478,13.69851364,160.41,160.4,5.66]
[1749697962367,27.39702728,160.41,160.33,6.5881]
[1749697962567,13.69851364,160.4,160.36,18.64964886]
[1749697963794,13.69851364,160.37,160.36,18.64964886]
[1749697966380,13.69851364,160.38,160.36,18.64964886]
[1749697966588,13.69851364,160.38,160.36,28.64964886]
[1749697966877,27.5457,160.44,160.36,28.64964886]
[1749697966878,13.69851364,160.37,160.36,28.64964886]
[1749697971083,13.69851364,160.37,160.36,10.0]
[1749697972302,27.68786157,160.44,160.36,10.0]
[1749697972596,13.69851364,160.38,160.36,28.64964886]
[1749697973499,13.69851364,160.4,160.37,18.64964886]
[1749697973809,13.69851364,160.39,160.37,18.64964886]
[1749697975590,26.0,160.43,160.37,18.64964886]
[1749697975798,13.69851364,160.39,160.37,18.64964886]
[1749697975996,13.69851364,160.42,160.37,32.3481625]
[1749697976202,149.24216157,160.49,160.41,18.64964886]
[1749697976203,150.7309,160.49,160.41,18.64964886]
[1749697976493,13.69851364,160.44,160.41,18.64964886]
[1749697977098,13.69851364,160.44,160.39,18.64964886]
[1749697977479,13.69851364,160.44,160.39,32.3481625]
[1749697978500,1.6309,160.49,160.43,18.64964886]
[1749697978802,13.69851364,160.46,160.43,18.64964886]
[1749697978980,13.69851364,160.45,160.43,18.64964886]
[1749697981304,13.69851364,160.46,160.43,18.64964886]
[1749697982107,1.6309,160.49,160.43,18.64964886]
[1749697982279,13.69851364,160.46,160.43,18.64964886]
[1749697983005,1.6309,160.49,160.43,18.64964886]
[1749697983006,13.69851364,160.45,160.43,18.64964886]
[1749697983584,13.69851364,160.45,160.43,24.28964886]
[1749697985505,1.6309,160.49,160.43,24.28964886]
[1749697985677,13.69851364,160.46,160.43,24.28964886]
[1749697986093,1.6309,160.49,160.43,24.28964886]
[1749697986307,13.69851364,160.47,160.43,37.9881625]
[1749697986485,1.6309,160.49,160.43,24.28964886]
[1749697986685,13.69851364,160.47,160.43,24.28964886]
[1749697987307,13.69851364,160.46,160.43,24.28964886]
[1749697989201,1.6309,160.49,160.43,24.28964886]
[1749697989202,13.69851364,160.47,160.43,24.28964886]
[1749697989409,13.69851364,160.47,160.43,37.9881625]
[1749697989599,13.69851364,160.48,160.43,37.9881625]
[1749697989795,13.69851364,160.48,160.45,18.64964886]
[1749697990186,1.5979,160.53,160.45,32.3481625]
[1749697990496,13.69851364,160.5,160.45,32.3481625]
[1749697991099,1.5979,160.53,160.45,32.3481625]
[1749697991290,13.69851364,160.5,160.45,32.3481625]
[1749697991692,13.69851364,160.5,160.45,58.3481625]
[1749697992227,13.69851364,160.48,160.45,44.64964886]
[1749697992398,7.82727651,160.53,160.43,5.92432314]
[1749697992399,13.69851364,160.46,160.43,31.64]
[1749697992587,7.82727651,160.53,160.44,18.64964886]
[1749697992588,13.69851364,160.45,160.44,18.64964886]
[1749697992795,13.69851364,160.46,160.44,18.64964886]
[1749697994511,1.5225,160.48,160.43,5.64]
[1749697994711,13.69851364,160.45,160.43,5.64]
[1749697994900,13.69851364,160.46,160.44,18.64964886]
[1749697996390,13.69851364,160.45,160.44,18.64964886]
[1749697997005,13.69851364,160.46,160.44,18.64964886]
[1749697997893,1.5225,160.48,160.43,5.64]
[1749697998093,13.69851364,160.46,160.43,24.28964886]
[1749697998494,13.69851364,160.46,160.45,18.64964886]
[1749697999010,13.69851364,160.46,160.43,5.64]
[1749697999215,13.69851364,160.45,160.43,5.64]
[1749698000014,1.5225,160.48,160.43,5.64]
[1749698000210,13.69851364,160.45,160.43,5.64]
[1749698001594,1.5225,160.48,160.43,5.64]
[1749698001795,13.69851364,160.46,160.43,5.64]
[1749698002994,13.69851364,160.45,160.43,5.64]
[1749698003326,13.69851364,160.44,160.43,5.64]
[1749698010119,13.69851364,160.44,160.41,26.0]
[1749698010321,13.69851364,160.43,160.41,26.0]
[1749698011416,13.69851364,160.43,160.42,10.0]
[1749698015742,13.69851364,160.44,160.42,10.0]
[1749698017332,13.69851364,160.46,160.43,18.64964886]
[1749698017501,13.69851364,160.47,160.43,18.64964886]
[1749698017706,1.5596,160.52,160.43,32.3481625]
[1749698018019,13.69851364,160.47,160.43,32.3481625]
[1749698018318,13.69851364,160.47,160.43,18.64964886]
[1749698019411,15.25811364,160.52,160.47,18.64964886]
[1749698019609,13.69851364,160.51,160.47,18.64964886]
[1749698020128,15.25811364,160.52,160.47,32.3481625]
[1749698020722,13.69851364,160.51,160.47,18.64964886]
[1749698024436,13.69851364,160.51,160.47,32.3481625]
[1749698025329,13.69851364,160.56,160.47,32.3481625]
[1749698025537,13.69851364,160.52,160.47,18.64964886]
[1749698025840,13.69851364,160.52,160.47,32.3481625]
[1749698026230,13.69851364,160.52,160.49,18.64964886]
[1749698028450,1.594,160.57,160.49,32.3481625]
[1749698028757,13.69851364,160.54,160.49,58.0681625]
[1749698029427,13.69851364,160.53,160.49,44.36964886]
[1749698029630,13.69851364,160.51,160.49,44.36964886]
[1749698029847,13.69851364,160.56,160.49,18.64964886]
[1749698029848,13.69851364,160.5,160.49,18.64964886]
[1749698030665,13.69851364,160.5,160.48,5.62]
[1749698030819,13.69851364,160.49,160.48,5.62]
[1749698037252,27.39702728,160.49,160.48,5.62]
[1749698037852,13.69851364,160.49,160.48,5.62]
[1749698038752,33.62794509,160.49,160.48,5.62]
[1749698039055,7.8344,160.48,160.41,5.62]
[1749698039275,13.69851364,160.42,160.41,5.62]
[1749698042233,27.39702728,160.42,160.41,5.62]
[1749698042430,41.36936398,160.42,160.34,5.62]
[1749698042627,13.69851364,160.35,160.34,5.62]
[1749698046951,39.69851364,160.35,160.34,5.62]
[1749698048839,13.69851364,160.35,160.34,5.62]
[1749698049042,34.03982728,160.35,160.27,5.62]
[1749698049243,13.69851364,160.28,160.27,5.62]
[1749698051536,13.69851364,160.28,160.2,18.64964886]
[1749698051742,13.69851364,160.23,160.2,24.26964886]
[1749698056065,26.0,160.28,160.2,24.26964886]
[1749698056369,13.69851364,160.25,160.22,18.64964886]
[1749698056546,13.69851364,160.25,160.2,19.31851364]
[1749698056868,13.69851364,160.24,160.2,24.26964886]
[1749698057040,13.69851364,160.21,160.2,24.26964886]
[1749698057461,13.69851364,160.21,160.2,5.62]
[1749698061168,13.69851364,160.24,160.2,5.62]
[1749698061365,13.69851364,160.21,160.2,15.62]
[1749698062764,6.52344414,160.28,160.2,15.62]
[1749698062765,0.28432314,160.28,160.2,15.62]
[1749698063072,13.69851364,160.24,160.21,18.64964886]
[1749698063373,13.69851364,160.23,160.21,18.64964886]
[1749698063544,40.16032436,160.29,160.21,18.64964886]
[1749698063545,13.69851364,160.22,160.21,18.64964886]
[1749698063944,33.9216,160.29,160.21,18.64964886]
[1749698064181,13.69851364,160.23,160.21,18.64964886]
[1749698065062,33.9216,160.29,160.21,18.64964886]
[1749698065264,13.69851364,160.23,160.21,18.64964886]
[1749698065465,13.69851364,160.22,160.2,15.62]
[1749698065668,13.69851364,160.21,160.2,34.26964886]
[1749698067458,13.69851364,160.21,160.2,15.62]
[1749698069385,26.0,160.26,160.2,15.62]
[1749698069882,13.69851364,160.23,160.2,15.62]
[1749698070249,13.69851364,160.22,160.2,15.62]
[1749698070476,26.0,160.26,160.2,15.62]
[1749698070673,13.69851364,160.23,160.2,34.26964886]
[1749698070888,13.69851364,160.24,160.21,18.64964886]
[1749698072487,26.0,160.26,160.21,18.64964886]
[1749698072675,13.69851364,160.24,160.21,18.64964886]
[1749698074689,26.0,160.26,160.21,18.64964886]
[1749698074982,13.69851364,160.24,160.21,18.64964886]
[1749698077379,27.6525,160.29,160.21,18.64964886]
[1749698077588,13.69851364,160.25,160.21,18.64964886]
[1749698082567,27.6525,160.29,160.23,18.64964886]
[1749698082767,13.69851364,160.26,160.23,18.64964886]
[1749698083566,27.6525,160.29,160.2,41.34]
[1749698083567,13.69851364,160.25,160.21,32.3481625]
[1749698083889,13.69851364,160.26,160.21,32.3481625]
[1749698086203,13.69851364,160.26,160.21,18.64964886]
[1749698086405,13.69851364,160.26,160.21,32.3481625]
[1749698087698,27.6525,160.29,160.23,13.69851364]
[1749698087865,13.69851364,160.28,160.25,18.64964886]
[1749698088577,13.69851364,160.32,160.27,13.69851364]
[1749698088779,13.69851364,160.3,160.24,18.64964886]
[1749698088987,13.69851364,160.28,160.24,32.3481625]
[1749698089872,26.0,160.3,160.2,36.0]
[1749698089873,13.69851364,160.26,160.2,36.0]
[1749698090180,13.69851364,160.25,160.21,24.24964886]
[1749698090574,13.69851364,160.25,160.21,37.9481625]
[1749698091295,13.69851364,160.26,160.21,37.9481625]
[1749698092988,26.0,160.23,160.21,37.9481625]
[1749698094280,26.0,160.25,160.21,37.9481625]
[1749698094482,39.69851364,160.25,160.21,37.9481625]
[1749698096495,39.69851364,160.25,160.21,24.24964886]
[1749698096706,39.69851364,160.25,160.21,37.9481625]
[1749698096910,26.0,160.25,160.21,37.9481625]
[1749698097202,26.0,160.28,160.24,32.3481625]
[1749698097505,26.0,160.28,160.26,18.64964886]
[1749698097808,39.69851364,160.3,160.26,18.64964886]
[1749698099307,26.0,160.28,160.26,32.3481625]
[1749698100083,26.0,160.28,160.26,58.0481625]
[1749698100391,26.0,160.3,160.27,13.69851364]
[1749698100782,26.0,160.3,160.26,58.0481625]
[1749698100986,26.0,160.3,160.27,13.69851364]
[1749698101183,26.0,160.29,160.28,13.69851364]
[1749698101383,13.69851364,160.32,160.27,13.69851364]
[1749698101591,26.0,160.29,160.27,13.69851364]
[1749698102196,26.0,160.29,160.28,5.6]
[1749698102393,39.69851364,160.29,160.28,5.6]
[1749698102686,26.0,160.29,160.28,5.6]
[1749698102886,1.6643,160.33,160.28,24.24964886]
[1749698102887,13.69851364,160.32,160.28,24.24964886]
[1749698103202,26.0,160.29,160.28,24.24964886]
[1749698103710,1.6643,160.33,160.29,18.64964886]
[1749698103918,26.0,160.3,160.29,18.64964886]
[1749698105417,26.0,160.34,160.29,32.3481625]
[1749698105586,13.69851364,160.35,160.32,18.64964886]
[1749698105788,13.69851364,160.33,160.3,25.7]
[1749698105987,1.6317,160.37,160.3,44.34964886]
[1749698105988,13.69851364,160.32,160.3,44.34964886]
[1749698106217,26.0,160.29,160.28,31.3]
[1749698106400,26.0,160.29,160.28,49.94964886]
[1749698109113,26.0,160.3,160.28,63.6481625]
[1749698109413,26.0,160.3,160.29,32.3481625]
[1749698110797,13.69851364,160.33,160.29,32.3481625]
[1749698111005,26.0,160.3,160.29,18.64964886]
[1749698111217,26.0,160.3,160.29,44.34964886]
[1749698111512,13.69851364,160.32,160.29,44.34964886]
[1749698111816,26.0,160.3,160.29,44.34964886]
[1749698112391,26.0,160.29,160.28,49.94964886]
[1749698112591,26.0,160.29,160.28,63.6481625]
[1749698112820,26.0,160.3,160.29,18.64964886]
[1749698113114,26.0,160.3,160.29,32.63248564]
[1749698113502,26.0,160.31,160.29,32.63248564]
[1749698113705,26.0,160.31,160.3,44.34964886]
[1749698116717,26.0,160.36,160.3,44.34964886]
[1749698116910,26.0,160.31,160.3,44.34964886]
[1749698120743,26.0,160.36,160.3,44.34964886]
[1749698120906,1.6317,160.37,160.3,44.34964886]
[1749698120907,26.0,160.31,160.3,44.34964886]
[1749698121421,15.33021364,160.37,160.31,18.64964886]
[1749698121619,15.33021364,160.37,160.3,39.68283678]
[1749698121620,15.33021364,160.37,160.33,32.3481625]
[1749698121928,15.33021364,160.37,160.33,58.0481625]
[1749698122727,15.33021364,160.37,160.33,44.34964886]
[1749698122897,26.0,160.34,160.33,44.34964886]
[1749698123507,26.0,160.33,160.32,25.7]
[1749698123712,26.0,160.33,160.32,44.34964886]
[1749698124101,13.69851364,160.33,160.32,18.64964886]
[1749698124300,27.6317,160.37,160.32,18.64964886]
[1749698124527,13.69851364,160.33,160.32,18.64964886]
[1749698125832,26.0,160.3,160.29,18.64964886]
[1749698126127,26.0,160.3,160.29,44.32964886]
[1749698129234,26.0,160.36,160.29,44.32964886]
[1749698129413,26.0,160.32,160.3,32.3481625]
[1749698129617,26.0,160.32,160.31,25.68]
[1749698131225,13.69851364,160.34,160.32,18.64964886]
[1749698131423,39.69851364,160.33,160.32,18.64964886]
[1749698131943,26.0,160.31,160.3,44.32964886]
[1749698132318,13.69851364,160.33,160.3,44.32964886]
[1749698134039,13.69851364,160.32,160.3,44.32964886]
[1749698136540,13.69851364,160.33,160.3,44.32964886]
[1749698136742,13.69851364,160.33,160.29,18.933972]
[1749698137037,13.69851364,160.33,160.3,25.68]
[1749698141642,13.69851364,160.33,160.32,18.64964886]
[1749698147051,1.6317,160.37,160.32,18.64964886]
[1749698147272,1.6317,160.37,160.32,58.0281625]
[1749698147273,15.33021364,160.37,160.32,58.0281625]
[1749698147548,13.69851364,160.36,160.33,10.0]
[1749698150132,13.69851364,160.35,160.33,10.0]
[1749698150334,1.6317,160.37,160.34,18.64964886]
[1749698151438,13.69851364,160.35,160.34,18.64964886]
[1749698160458,13.69851364,160.36,160.34,18.64964886]
[1749698161850,1.6317,160.37,160.34,18.64964886]
[1749698162056,13.69851364,160.36,160.34,18.64964886]
[1749698162557,13.69851364,160.35,160.34,18.64964886]
[1749698163063,13.69851364,160.35,160.33,10.0]
[1749698163246,8.75860139,160.34,160.32,18.64964886]
[1749698163555,8.75860139,160.35,160.32,18.64964886]
[1749698163759,8.75860139,160.34,160.32,18.64964886]
[1749698164451,8.75860139,160.35,160.32,18.64964886]
[1749698165156,8.75860139,160.35,160.33,10.0]
[1749698165727,8.75860139,160.34,160.33,15.6]
[1749698166749,8.75860139,160.34,160.33,5.6]
[1749698166944,8.51860139,160.34,160.33,5.6]
[1749698168262,43.55300695,160.34,160.28,5.6]
[1749698168434,8.75860139,160.29,160.2,7.7343]
[1749698168759,26.0,160.28,160.21,5.6]
[1749698168959,1.5627,160.27,160.21,5.6]
[1749698169156,27.5627,160.27,160.21,5.6]
[1749698169361,1.5627,160.27,160.21,5.6]
[1749698169566,2.33522004,160.26,160.21,5.6]
[1749698169862,13.70943544,160.22,160.21,5.6]
[1749698172859,1.5627,160.27,160.21,5.6]
[1749698173062,1.5627,160.27,160.22,18.64964886]
[1749698173274,13.70943544,160.25,160.22,18.64964886]
[1749698173451,13.70943544,160.25,160.21,44.98943544]
[1749698173452,13.70943544,160.29,160.25,18.64964886]
[1749698173656,13.70943544,160.29,160.25,32.3590843]
[1749698173950,13.70943544,160.29,160.25,58.0390843]
[1749698174632,13.70943544,160.29,160.25,44.32964886]
[1749698176053,13.70943544,160.28,160.25,44.32964886]
[1749698176743,13.70943544,160.28,160.27,18.64964886]
[1749698177680,13.70943544,160.29,160.27,18.64964886]
[1749698178754,6.3024,160.35,160.27,18.64964886]
[1749698178755,13.70943544,160.3,160.27,18.64964886]
[1749698179274,13.70943544,160.31,160.27,32.3590843]
[1749698179971,13.70943544,160.31,160.27,18.64964886]
[1749698180179,13.70943544,160.3,160.27,18.64964886]
[1749698181659,13.70943544,160.3,160.29,18.64964886]
[1749698183485,13.70943544,160.31,160.29,18.64964886]
[1749698189890,13.70943544,160.3,160.28,5.58]
[1749698190079,13.70943544,160.29,160.28,5.58]
[1749698191074,13.70943544,160.3,160.28,5.58]
[1749698192697,13.70943544,160.29,160.28,5.58]
[1749698197292,14.17748177,160.35,160.28,5.58]
[1749698197594,13.70943544,160.29,160.28,5.58]
[1749698198201,7.9411,160.35,160.28,5.58]
[1749698198385,13.70943544,160.29,160.28,5.58]
[1749698198706,1.6387,160.35,160.29,18.64964886]
[1749698198895,1.6387,160.35,160.29,32.3590843]
[1749698198896,13.70943544,160.34,160.29,32.3590843]
[1749698199085,13.70943544,160.35,160.32,18.64964886]
[1749698199806,8.0649,160.39,160.32,18.64964886]
[1749698200012,13.70943544,160.35,160.32,18.64964886]
[1749698202602,13.70943544,160.35,160.31,13.70943544]
[1749698202603,13.70943544,160.35,160.31,18.64964886]
[1749698203090,13.70943544,160.35,160.31,32.3590843]
[1749698203291,8.0649,160.39,160.31,32.3590843]
[1749698203292,1.526,160.39,160.33,13.70943544]
[1749698203494,13.70943544,160.38,160.34,18.64964886]
[1749698204007,13.70943544,160.37,160.34,18.64964886]
[1749698205702,1.526,160.39,160.33,25.66]
[1749698205703,13.70943544,160.35,160.33,25.66]
[1749698205876,13.70943544,160.34,160.31,26.0]
[1749698206080,1.526,160.39,160.32,18.64964886]
[1749698206081,13.70943544,160.33,160.32,18.64964886]
[1749698208909,13.70943544,160.34,160.32,18.64964886]
[1749698209692,13.70943544,160.35,160.32,18.64964886]
[1749698210686,13.70943544,160.34,160.32,18.64964886]
[1749698211205,13.70943544,160.33,160.32,18.64964886]
[1749698212713,13.70943544,160.33,160.28,5.58]
[1749698213020,13.70943544,160.32,160.29,18.64964886]
[1749698213511,13.70943544,160.32,160.29,44.64964886]
[1749698215725,6.4798,160.37,160.29,58.3590843]
[1749698216021,1.526,160.39,160.32,39.70943544]
[1749698216201,13.70943544,160.39,160.34,13.70943544]
[1749698216393,13.70943544,160.42,160.37,32.3590843]
[1749698216595,13.70943544,160.38,160.37,24.22964886]
[1749698216824,13.70943544,160.38,160.37,5.58]
[1749698223940,19.94462686,160.38,160.37,5.58]
[1749698224925,13.70943544,160.38,160.37,5.58]
[1749698227832,19.94462686,160.38,160.37,5.58]
[1749698228134,13.70943544,160.38,160.37,5.58]
[1749698229024,1.5461,160.43,160.37,5.58]
[1749698229230,13.70943544,160.39,160.37,5.58]
[1749698229728,13.70943544,160.38,160.37,5.58]
[1749698231420,1.5461,160.43,160.37,5.58]
[1749698231619,1.5461,160.43,160.34,44.28964886]
[1749698231620,13.70943544,160.38,160.34,18.64964886]
[1749698231810,13.70943544,160.4,160.34,24.22964886]
[1749698231811,13.70943544,160.35,160.34,24.22964886]
[1749698232011,13.70943544,160.35,160.34,5.58]
[1749698245361,13.70943544,160.37,160.34,5.58]
[1749698245732,13.70943544,160.37,160.34,15.58]
[1749698246141,13.70943544,160.35,160.34,34.22964886]
[1749698246346,13.70943544,160.35,160.34,10.0]
[1749698247434,13.70943544,160.35,160.33,5.56]
[1749698247636,13.70943544,160.34,160.33,5.56]
[1749698250958,13.70943544,160.34,160.27,18.64964886]
[1749698250959,27.41887088,160.34,160.27,18.64964886]
[1749698251137,13.70943544,160.28,160.27,18.64964886]
[1749698251760,13.70943544,160.28,160.26,5.56]
[1749698251974,13.70943544,160.27,160.26,24.20964886]
[1749698252972,13.70943544,160.27,160.26,5.56]
[1749698253552,12.70943544,160.27,160.26,5.56]
[1749698254085,1.5067,160.3,160.26,5.56]
[1749698254289,13.70943544,160.28,160.26,5.56]
[1749698254454,13.70943544,160.27,160.26,5.56]
[1749698255273,13.70943544,160.28,160.26,5.56]
[1749698255966,1.5067,160.3,160.26,5.56]
[1749698255967,13.70943544,160.27,160.26,5.56]
[1749698268993,1.5067,160.3,160.27,18.64964886]
[1749698268994,13.70943544,160.3,160.27,18.64964886]
[1749698269195,13.70943544,160.31,160.27,18.64964886]
[1749698271382,13.70943544,160.29,160.27,18.64964886]
[1749698271579,13.70943544,160.28,160.26,5.56]
[1749698271779,13.70943544,160.27,160.26,5.56]
[1749698283232,19.94890633,160.27,160.26,5.56]
[1749698285084,19.94890633,160.27,160.2,18.64964886]
[1749698285286,13.70943544,160.23,160.2,18.64964886]
[1749698285487,13.70943544,160.22,160.2,18.64964886]
[1749698285886,13.70943544,160.23,160.2,18.64964886]
[1749698286816,13.70943544,160.22,160.2,18.64964886]